fUSD/lending_fUSD_20240412
["ID","MTS","AMOUNT","RATE_DAILY","PERIOD"]
[322222105,1712890253108,-239.010686,0.00027671,7]
[322222106,1712890253119,-500.0,0.00027671,2]
[322222107,1712890253128,-603.37,0.00027671,2]
[322222108,1712890253137,-500.0,0.00027671,2]
[322222109,1712890253147,-500.0,0.00027671,2]
[322222110,1712890253156,-500.0,0.00027671,2]
[322222111,1712890253165,-500.0,0.00027671,2]
[322222112,1712890253175,-500.0,0.00027671,2]
[322222113,1712890253184,-500.0,0.00027671,2]
[322222114,1712890253193,-500.0,0.00027671,2]
[322222115,1712890253202,-500.0,0.00027671,2]
[322222116,1712890253211,-500.0,0.00027671,2]
[322222117,1712890253221,-500.0,0.00027671,2]
[322222118,1712890253230,-500.0,0.00027671,2]
[322222119,1712890253239,-500.0,0.00027671,2]
[322222120,1712890253250,-500.0,0.00027671,2]
[322222121,1712890253259,-500.0,0.00027671,2]
[322222122,1712890253268,-276.78172642,0.00027671,2]
[322222123,1712890253279,-500.0,0.00027671,2]
[322222124,1712890253289,-500.0,0.00027671,2]
[322222125,1712890253299,-598.09723257,0.00027671,2]
[322222126,1712890253308,-500.0,0.00027671,2]
[322222127,1712890253317,-594.90387131,0.00027671,2]
[322222128,1712890253327,-500.0,0.00027671,2]
[322222129,1712890253336,-500.0,0.00027671,2]
[322222130,1712890253346,-500.0,0.00027671,2]
[322222131,1712890253357,-500.0,0.00027671,2]
[322222132,1712890253367,-500.0,0.00027671,2]
[322222133,1712890253377,-500.0,0.00027671,2]
[322222134,1712890253386,-688.68,0.00027671,2]
[322222135,1712890253395,-500.0,0.00027671,2]
[322222136,1712890253404,-500.0,0.00027671,2]
[322222137,1712890253413,-500.0,0.00027671,2]
[322222138,1712890253422,-500.0,0.00027671,2]
[322222139,1712890253432,-500.0,0.00027671,2]
[322222140,1712890253442,-500.0,0.00027671,2]
[322222141,1712890253452,-292.93833997,0.00027671,2]
[322222142,1712890253462,-500.0,0.00027671,2]
[322222143,1712890253471,-261.54935335,0.00027671,2]
[322222144,1712890253480,-333.58363925,0.00027671,2]
[322222145,1712890253490,-500.0,0.00027671,2]
[322222146,1712890253499,-500.0,0.00027671,2]
[322222147,1712890253508,-500.0,0.00027671,2]
[322222148,1712890253517,-500.0,0.00027671,2]
[322222149,1712890253526,-500.0,0.00027671,2]
[322222150,1712890253536,-500.0,0.00027671,2]
[322222151,1712890253545,-500.0,0.00027671,2]
[322222152,1712890253554,-500.0,0.00027671,2]
[322222153,1712890253563,-500.0,0.00027671,2]
[322222154,1712890253572,-500.0,0.00027671,2]
[322222155,1712890253581,-500.0,0.00027671,2]
[322222156,1712890253591,-500.0,0.00027671,2]
[322222157,1712890253600,-500.0,0.00027671,2]
[322222158,1712890253609,-500.0,0.00027671,2]
[322222159,1712890253619,-500.0,0.00027671,2]
[322222160,1712890253632,-500.0,0.00027671,2]
[322222161,1712890253643,-500.0,0.00027671,2]
[322222162,1712890253653,-724.2,0.00027671,2]
[322222163,1712890253663,-500.0,0.00027671,2]
[322222164,1712890253674,-500.0,0.00027671,2]
[322222165,1712890253683,-500.0,0.00027671,2]
[322222166,1712890253692,-500.0,0.00027671,2]
[322222167,1712890253702,-500.0,0.00027671,2]
[322222168,1712890253711,-500.0,0.00027671,2]
[322222169,1712890253721,-500.0,0.00027671,2]
[322222170,1712890253730,-500.0,0.00027671,2]
[322222171,1712890253739,-500.0,0.00027671,2]
[322222172,1712890253748,-500.0,0.00027671,2]
[322222173,1712890253757,-500.0,0.00027671,2]
[322222174,1712890253766,-500.0,0.00027671,2]
[322222175,1712890253775,-500.0,0.00027671,2]
[322222176,1712890253784,-500.0,0.00027671,2]
[322222177,1712890253794,-1995.14,0.00027671,2]
[322222178,1712890253804,-505.0776962,0.00027671,2]
[322222179,1712890253814,-500.0,0.00027671,2]
[322222180,1712890253823,-500.0,0.00027671,2]
[322222181,1712890253832,-500.0,0.00027671,2]
[322222182,1712890253842,-211.08038779,0.00027671,2]
[322222183,1712890253851,-500.0,0.00027671,2]
[322222184,1712890253859,-500.0,0.00027671,2]
[322222185,1712890253869,-500.0,0.00027671,2]
[322222186,1712890253878,-271.20297395,0.00027671,2]
[322222187,1712890253887,-500.0,0.00027671,2]
[322222188,1712890253896,-500.0,0.00027671,2]
[322222189,1712890253905,-500.0,0.00027671,2]
[322222190,1712890253914,-500.0,0.00027671,2]
[322222191,1712890253924,-500.0,0.00027671,2]
[322222192,1712890253933,-500.0,0.00027671,2]
[322222193,1712890253943,-150.0,0.00027671,2]
[322222194,1712890253952,-500.0,0.00027671,2]
[322222195,1712890253961,-500.0,0.00027671,2]
[322222196,1712890253970,-500.0,0.00027671,2]
[322222197,1712890253980,-500.0,0.00027671,2]
[322222198,1712890253989,-500.0,0.00027671,2]
[322222199,1712890253998,-500.0,0.00027671,2]
[322222200,1712890254008,-500.0,0.00027671,2]
[322222201,1712890254017,-446.67,0.00027671,2]
[322222202,1712890254026,-1169.14,0.00027671,2]
[322222203,1712890254036,-500.0,0.00027671,2]
[322222204,1712890254045,-500.0,0.00027671,2]
[322222205,1712890254055,-500.0,0.00027671,2]
[322222206,1712890254065,-500.0,0.00027671,2]
[322222207,1712890254074,-500.0,0.00027671,2]
[322222208,1712890254084,-500.0,0.00027671,2]
[322222209,1712890254102,-500.0,0.00027671,2]
[322222210,1712890254121,-500.0,0.00027671,2]
[322222211,1712890254130,-644.64,0.00027671,2]
[322222212,1712890254140,-500.0,0.00027671,2]
[322222213,1712890254149,-1631.76,0.00027671,2]
[322222214,1712890254158,-500.0,0.00027671,2]
[322222215,1712890254167,-500.0,0.00027671,2]
[322222216,1712890254178,-500.0,0.00027671,2]
[322222217,1712890254187,-500.0,0.00027671,2]
[322222218,1712890254196,-500.0,0.00027671,2]
[322222219,1712890254205,-500.0,0.00027671,2]
[322222220,1712890254214,-500.0,0.00027671,2]
[322222221,1712890254224,-500.0,0.00027671,2]
[322222222,1712890254234,-500.0,0.00027671,2]
[322222223,1712890254244,-500.0,0.00027671,2]
[322222224,1712890254253,-500.0,0.00027671,2]
[322222225,1712890254263,-500.0,0.00027671,2]
[322222226,1712890254272,-500.0,0.00027671,2]
[322222227,1712890254282,-500.0,0.00027671,2]
[322222228,1712890254291,-500.0,0.00027671,2]
[322222229,1712890254301,-500.0,0.00027671,2]
[322222230,1712890254310,-637.18281792,0.00027671,2]
[322222231,1712890254319,-500.0,0.00027671,2]
[322222232,1712890254329,-534.01,0.00027671,2]
[322222233,1712890254339,-353.78158722,0.00027671,2]
[322222234,1712890254348,-500.0,0.00027671,2]
[322222235,1712890254357,-500.0,0.00027671,2]
[322222236,1712890254366,-500.0,0.00027671,2]
[322222237,1712890254375,-500.0,0.00027671,2]
[322222238,1712890254385,-573.64053375,0.00027671,2]
[322222239,1712890254394,-500.0,0.00027671,2]
[322222240,1712890254403,-508.43052479,0.00027671,2]
[322222241,1712890254413,-215.77,0.00027671,2]
[322222242,1712890254422,-394.05083864,0.00027671,2]
[322222243,1712890254432,-500.0,0.00027671,2]
[322222244,1712890254441,-462.95076158,0.00027671,2]
[322222245,1712890254450,-500.0,0.00027671,2]
[322222246,1712890254460,-500.0,0.00027671,2]
[322222247,1712890254469,-228.13563202,0.00027671,2]
[322222248,1712890254478,-358.40245691,0.00027671,2]
[322222249,1712890254487,-500.0,0.00027671,2]
[322222250,1712890254496,-3347.08,0.00027671,2]
[322222251,1712890254505,-216.57,0.00027671,2]
[322222252,1712890254514,-500.0,0.00027671,2]
[322222253,1712890254524,-500.0,0.00027671,2]
[322222254,1712890254534,-299.65463761,0.00027671,2]
[322222255,1712890254543,-500.0,0.00027671,2]
[322222256,1712890254552,-500.0,0.00027671,2]
[322222257,1712890254562,-500.0,0.00027671,2]
[322222258,1712890254570,-2493.53,0.00027671,2]
[322222259,1712890254580,-500.0,0.00027671,2]
[322222260,1712890254589,-500.0,0.00027671,2]
[322222261,1712890254599,-500.0,0.00027671,2]
[322222262,1712890254608,-500.0,0.00027671,2]
[322222263,1712890254618,-604.56634354,0.00027671,2]
[322222264,1712890254629,-510.37244139,0.00027671,2]
[322222265,1712890254639,-1209.92,0.00027671,2]
[322222266,1712890254648,-211.38,0.00027671,2]
[322222267,1712890254658,-500.0,0.00027671,2]
[322222268,1712890254667,-500.0,0.00027671,2]
[322222269,1712890254678,-263.39665522,0.00027671,2]
[322222270,1712890254686,-361.57922118,0.00027671,2]
[322222271,1712890254695,-500.0,0.00027671,2]
[322222272,1712890254704,-500.0,0.00027671,2]
[322222273,1712890254714,-2226.29,0.00027671,2]
[322222274,1712890254724,-500.0,0.00027671,2]
[322222275,1712890254733,-500.0,0.00027671,2]
[322222276,1712890254742,-500.0,0.00027671,2]
[322222277,1712890254751,-500.0,0.00027671,2]
[322222278,1712890254760,-500.0,0.00027671,2]
[322222279,1712890254769,-500.0,0.00027671,2]
[322222280,1712890254778,-500.0,0.00027671,2]
[322222281,1712890254787,-4219.44,0.00027671,2]
[322222282,1712890254797,-500.0,0.00027671,2]
[322222283,1712890254806,-500.0,0.00027671,2]
[322222284,1712890254815,-609.62,0.00027671,2]
[322222285,1712890254825,-500.0,0.00027671,2]
[322222286,1712890254833,-500.0,0.00027671,2]
[322222287,1712890254842,-617.04,0.00027671,2]
[322222288,1712890254852,-500.0,0.00027671,2]
[322222289,1712890254861,-559.00520847,0.00027671,2]
[322222290,1712890254870,-500.0,0.00027671,2]
[322222291,1712890254879,-500.0,0.00027671,2]
[322222292,1712890254889,-2541.62,0.00027671,2]
[322222293,1712890254899,-500.0,0.00027671,2]
[322222294,1712890254909,-500.0,0.00027671,2]
[322222295,1712890254919,-526.10993211,0.00027671,2]
[322222296,1712890254928,-500.0,0.00027671,2]
[322222297,1712890254938,-500.0,0.00027671,2]
[322222298,1712890254948,-500.0,0.00027671,2]
[322222299,1712890254957,-512.53409809,0.00027671,2]
[322222300,1712890254967,-500.0,0.00027671,2]
[322222301,1712890254977,-1908.75,0.00027671,2]
[322222302,1712890254987,-500.0,0.00027671,2]
[322222303,1712890254996,-500.0,0.00027671,2]
[322222304,1712890255007,-21655.87,0.00027671,2]
[322222305,1712890255016,-502.55291033,0.00027671,2]
[322222306,1712890255026,-500.0,0.00027671,2]
[322222307,1712890255036,-500.0,0.00027671,2]
[322222308,1712890255046,-500.0,0.00027671,2]
[322222309,1712890255055,-500.0,0.00027671,2]
[322222310,1712890255065,-500.0,0.00027671,2]
[322222311,1712890255076,-517.76597953,0.00027671,2]
[322222312,1712890255086,-777.0,0.00027671,2]
[322222313,1712890255098,-500.0,0.00027671,2]
[322222314,1712890255108,-1552.71,0.00027671,2]
[322222315,1712890255118,-504.34,0.00027671,2]
[322222316,1712890255128,-500.0,0.00027671,2]
[322222317,1712890255138,-500.0,0.00027671,2]
[322222318,1712890255148,-500.0,0.00027671,2]
[322222319,1712890255157,-970.87,0.00027671,2]
[322222320,1712890255167,-268.22084657,0.00027671,2]
[322222321,1712890255179,-500.0,0.00027671,2]
[322222322,1712890255189,-500.0,0.00027671,2]
[322222323,1712890255199,-762.88,0.00027671,2]
[322222324,1712890255208,-945.58,0.00027671,2]
[322222325,1712890255218,-500.0,0.00027671,2]
[322222326,1712890255229,-500.0,0.00027671,2]
[322222327,1712890255239,-500.0,0.00027671,2]
[322222328,1712890255250,-844.85,0.00027671,2]
[322222329,1712890255260,-451.91278641,0.00027671,2]
[322222330,1712890255270,-500.0,0.00027671,2]
[322222331,1712890255281,-305.75522273,0.00027671,2]
[322222332,1712890255291,-2161.19,0.00027671,2]
[322222333,1712890255301,-500.0,0.00027671,2]
[322222334,1712890255311,-500.0,0.00027671,2]
[322222335,1712890255321,-500.0,0.00027671,2]
[322222336,1712890255331,-226.37531203,0.00027671,2]
[322222337,1712890255341,-921.89,0.00027671,2]
[322222338,1712890255351,-500.0,0.00027671,2]
[322222339,1712890255362,-500.0,0.00027671,2]
[322222340,1712890255371,-527.74,0.00027671,2]
[322222341,1712890255381,-500.0,0.00027671,2]
[322222342,1712890255391,-194.940666,0.00027671,2]
[322222343,1712890255401,-500.0,0.00027671,2]
[322222344,1712890255411,-2631.19,0.00027671,2]
[322222345,1712890255421,-500.0,0.00027671,2]
[322222346,1712890255433,-500.0,0.00027671,2]
[322222347,1712890255442,-1121.7,0.00027671,2]
[322222348,1712890255452,-1482.97,0.00027671,2]
[322222349,1712890255462,-500.0,0.00027671,2]
[322222350,1712890255471,-419.66587761,0.00027671,2]
[322222351,1712890255481,-500.0,0.00027671,2]
[322222352,1712890255491,-648.44,0.00027671,2]
[322222353,1712890255501,-500.0,0.00027671,2]
[322222354,1712890255511,-562.46,0.00027671,2]
[322222355,1712890255520,-500.0,0.00027671,2]
[322222356,1712890255529,-502.76520808,0.00027671,2]
[322222357,1712890255539,-500.0,0.00027671,2]
[322222358,1712890255549,-688.0,0.00027671,2]
[322222359,1712890255558,-359.00114179,0.00027671,2]
[322222360,1712890255568,-500.0,0.00027671,2]
[322222361,1712890255577,-1191.49,0.00027671,2]
[322222362,1712890255587,-500.0,0.00027671,2]
[322222363,1712890255597,-376.05143541,0.00027671,2]
[322222364,1712890255607,-500.0,0.00027671,2]
[322222365,1712890255617,-5616.53,0.00027671,2]
[322222366,1712890255628,-500.0,0.00027671,2]
[322222367,1712890255641,-172.9003234,0.00027671,2]
[322222368,1712890255651,-588.10757006,0.00027671,2]
[322222369,1712890255660,-500.0,0.00027671,2]
[322222370,1712890255671,-958.44,0.00027671,2]
[322222371,1712890255683,-500.0,0.00027671,2]
[322222372,1712890255692,-502.16000738,0.00027671,2]
[322222373,1712890255701,-443.70409395,0.00027671,2]
[322222374,1712890255712,-500.0,0.00027671,2]
[322222375,1712890255722,-500.0,0.00027671,2]
[322222376,1712890255732,-404.98631419,0.00027671,2]
[322222377,1712890255741,-529.35,0.00027671,2]
[322222378,1712890255751,-500.0,0.00027671,2]
[322222379,1712890255760,-500.0,0.00027671,2]
[322222380,1712890255770,-3281.81,0.00027671,2]
[322222381,1712890255779,-500.0,0.00027671,2]
[322222382,1712890255789,-500.0,0.00027671,2]
[322222383,1712890255799,-4040.42,0.00027671,2]
[322222384,1712890255809,-500.0,0.00027671,2]
[322222385,1712890255818,-500.0,0.00027671,2]
[322222386,1712890255828,-500.0,0.00027671,2]
[322222387,1712890255837,-500.0,0.00027671,2]
[322222388,1712890255847,-500.0,0.00027671,2]
[322222389,1712890255858,-320.30220393,0.00027671,2]
[322222390,1712890255868,-500.0,0.00027671,2]
[322222391,1712890255878,-2415.83,0.00027671,2]
[322222392,1712890255889,-500.0,0.00027671,2]
[322222393,1712890255899,-500.0,0.00027671,2]
[322222394,1712890255908,-532.43,0.00027671,2]
[322222395,1712890255919,-500.0,0.00027671,2]
[322222396,1712890255932,-500.0,0.00027671,2]
[322222397,1712890255942,-500.0,0.00027671,2]
[322222398,1712890255953,-1437.23,0.00027671,2]
[322222399,1712890255965,-1827.32,0.00027671,2]
[322222400,1712890255977,-500.0,0.00027671,2]
[322222401,1712890255987,-500.0,0.00027671,2]
[322222402,1712890255997,-500.0,0.00027671,2]
[322222403,1712890256007,-500.0,0.00027671,2]
[322222404,1712890256017,-824.74,0.00027671,2]
[322222405,1712890256027,-504.9,0.00027671,2]
[322222406,1712890256037,-780.94,0.00027671,2]
[322222407,1712890256047,-500.0,0.00027671,2]
[322222408,1712890256057,-500.0,0.00027671,2]
[322222409,1712890256068,-500.0,0.00027671,2]
[322222410,1712890256078,-500.0,0.00027671,2]
[322222411,1712890256089,-580.14329928,0.00027671,2]
[322222412,1712890256099,-595.89,0.00027671,2]
[322222413,1712890256109,-500.0,0.00027671,2]
[322222414,1712890256120,-500.0,0.00027671,2]
[322222415,1712890256130,-13691.04,0.00027671,2]
[322222416,1712890256139,-500.0,0.00027671,2]
[322222417,1712890256150,-500.0,0.00027671,2]
[322222418,1712890256159,-500.0,0.00027671,2]
[322222419,1712890256169,-564.02,0.00027671,2]
[322222420,1712890256181,-238.31452906,0.00027671,2]
[322222421,1712890256191,-1991.7,0.00027671,2]
[322222422,1712890256200,-500.0,0.00027671,2]
[322222423,1712890256210,-445.0,0.00027671,2]
[322222424,1712890256220,-500.0,0.00027671,2]
[322222425,1712890256229,-508.92571669,0.00027671,2]
[322222426,1712890256240,-500.0,0.00027671,2]
[322222427,1712890256250,-2985.87,0.00027671,2]
[322222428,1712890256261,-500.0,0.00027671,2]
[322222429,1712890256272,-206.33843714,0.00027671,2]
[322222430,1712890256283,-7906.22,0.00027671,2]
[322222431,1712890256294,-500.0,0.00027671,2]
[322222432,1712890256304,-638.68685476,0.00027671,2]
[322222433,1712890256315,-597.7752912,0.00027671,2]
[322222434,1712890256326,-500.0,0.00027671,2]
[322222435,1712890256336,-500.0,0.00027671,2]
[322222436,1712890256347,-500.0,0.00027671,2]
[322222437,1712890256358,-500.0,0.00027671,2]
[322222438,1712890256369,-500.0,0.00027671,2]
[322222439,1712890256379,-934.37,0.00027671,2]
[322222440,1712890256391,-450.70575005,0.00027671,2]
[322222441,1712890256401,-500.0,0.00027671,2]
[322222442,1712890256412,-500.0,0.00027671,2]
[322222443,1712890256421,-500.0,0.00027671,2]
[322222444,1712890256433,-500.0,0.00027671,2]
[322222445,1712890256443,-725.22,0.00027671,2]
[322222446,1712890256452,-506.95031105,0.00027671,2]
[322222447,1712890256462,-500.0,0.00027671,2]
[322222448,1712890256472,-500.0,0.00027671,2]
[322222449,1712890256481,-1044.44,0.00027671,2]
[322222450,1712890256491,-500.0,0.00027671,2]
[322222451,1712890256500,-307.85994374,0.00027671,2]
[322222452,1712890256510,-1796.05,0.00027671,2]
[322222453,1712890256520,-500.0,0.00027671,2]
[322222454,1712890256530,-500.0,0.00027671,2]
[322222455,1712890256540,-500.0,0.00027671,2]
[322222456,1712890256549,-500.0,0.00027671,2]
[322222457,1712890256559,-959.12,0.00027671,2]
[322222458,1712890256568,-500.0,0.00027671,2]
[322222459,1712890256578,-500.0,0.00027671,2]
[322222460,1712890256587,-246.9861481,0.00027671,2]
[322222461,1712890256597,-236.4944592,0.00027671,2]
[322222462,1712890256607,-500.0,0.00027671,2]
[322222463,1712890256616,-1031.67,0.00027671,2]
[322222464,1712890256630,-243.0,0.00027671,2]
[322222465,1712890256640,-621.94427282,0.00027671,2]
[322222466,1712890256650,-500.0,0.00027671,2]
[322222467,1712890256659,-500.0,0.00027671,2]
[322222468,1712890256669,-2624.08,0.00027671,2]
[322222469,1712890256679,-500.0,0.00027671,2]
[322222470,1712890256689,-500.0,0.00027671,2]
[322222471,1712890256698,-1126.82,0.00027671,2]
[322222472,1712890256708,-500.0,0.00027671,2]
[322222473,1712890256718,-500.0,0.00027671,2]
[322222474,1712890256727,-264.82483663,0.00027671,2]
[322222475,1712890256737,-547.70020905,0.00027671,2]
[322222476,1712890256746,-1149.56,0.00027671,2]
[322222477,1712890256756,-515.4,0.00027671,2]
[322222478,1712890256766,-310.10906147,0.00027671,2]
[322222479,1712890256775,-500.0,0.00027671,2]
[322222480,1712890256784,-500.0,0.00027671,2]
[322222481,1712890256794,-500.0,0.00027671,2]
[322222482,1712890256803,-500.0,0.00027671,2]
[322222483,1712890256814,-500.0,0.00027671,2]
[322222484,1712890256824,-506.99063624,0.00027671,2]
[322222485,1712890256833,-597.11271293,0.00027671,2]
[322222486,1712890256843,-500.0,0.00027671,2]
[322222487,1712890256852,-500.0,0.00027671,2]
[322222488,1712890256862,-500.0,0.00027671,2]
[322222489,1712890256871,-2862.46,0.00027671,2]
[322222490,1712890256881,-936.46,0.00027671,2]
[322222491,1712890256890,-645.45934989,0.00027671,2]
[322222492,1712890256900,-500.0,0.00027671,2]
[322222493,1712890256910,-500.0,0.00027671,2]
[322222494,1712890256919,-500.0,0.00027671,2]
[322222495,1712890256930,-500.0,0.00027671,2]
[322222496,1712890256940,-683.74,0.00027671,2]
[322222497,1712890256950,-500.0,0.00027671,2]
[322222498,1712890256960,-500.0,0.00027671,2]
[322222499,1712890256970,-2040.11,0.00027671,2]
[322222500,1712890256979,-500.0,0.00027671,2]
[322222501,1712890256989,-1649.45,0.00027671,2]
[322222502,1712890256999,-2046.57,0.00027671,2]
[322222503,1712890257009,-500.0,0.00027671,2]
[322222504,1712890257019,-500.0,0.00027671,2]
[322222505,1712890257029,-510.44706247,0.00027671,2]
[322222506,1712890257039,-500.0,0.00027671,2]
[322222507,1712890257052,-3950.64,0.00027671,2]
[322222508,1712890257244,-500.0,0.00027671,2]
[322222509,1712890257254,-1778.35,0.00027671,2]
[322222510,1712890257263,-509.73445069,0.00027671,2]
[322222511,1712890257272,-500.0,0.00027671,2]
[322222512,1712890257281,-500.0,0.00027671,2]
[322222513,1712890257290,-500.0,0.00027671,2]
[322222514,1712890257300,-500.0,0.00027671,2]
[322222515,1712890257309,-500.0,0.00027671,2]
[322222516,1712890257319,-1170.31,0.00027671,2]
[322222517,1712890257329,-500.0,0.00027671,2]
[322222518,1712890257339,-3882.89,0.00027671,2]
[322222519,1712890257348,-2405.95,0.00027671,2]
[322222520,1712890257358,-206.14763903,0.00027671,2]
[322222521,1712890257369,-318.20326226,0.00027671,2]
[322222522,1712890257378,-597.24177643,0.00027671,2]
[322222523,1712890257387,-500.0,0.00027671,2]
[322222524,1712890257396,-500.0,0.00027671,2]
[322222525,1712890257406,-500.0,0.00027671,2]
[322222526,1712890257416,-500.0,0.00027671,2]
[322222527,1712890257425,-2750.25,0.00027671,2]
[322222528,1712890257435,-500.0,0.00027671,2]
[322222529,1712890257446,-612.53,0.00027671,2]
[322222530,1712890257457,-811.19,0.00027671,2]
[322222531,1712890257467,-500.0,0.00027671,2]
[322222532,1712890257476,-500.0,0.00027671,2]
[322222533,1712890257485,-2774.76,0.00027671,2]
[322222534,1712890257495,-404.62135057,0.00027671,2]
[322222535,1712890257505,-500.0,0.00027671,2]
[322222536,1712890257514,-500.0,0.00027671,2]
[322222537,1712890257523,-500.0,0.00027671,2]
[322222538,1712890257532,-512.9212426,0.00027671,2]
[322222539,1712890257542,-510.49,0.00027671,2]
[322222540,1712890257551,-500.0,0.00027671,2]
[322222541,1712890257561,-198.07469227,0.00027671,2]
[322222542,1712890257570,-1444.9,0.00027671,2]
[322222543,1712890257579,-341.12234823,0.00027671,2]
[322222544,1712890257589,-500.0,0.00027671,2]
[322222545,1712890257599,-500.0,0.00027671,2]
[322222546,1712890257609,-873.75,0.00027671,2]
[322222547,1712890257620,-1880.24,0.00027671,2]
[322222548,1712890257631,-500.0,0.00027671,2]
[322222549,1712890257641,-2145.13,0.00027671,2]
[322222550,1712890257651,-9335.63,0.00027671,2]
[322222551,1712890257661,-500.0,0.00027671,2]
[322222552,1712890257671,-1136.29,0.00027671,2]
[322222553,1712890257680,-1004.88,0.00027671,2]
[322222554,1712890257690,-525.99448388,0.00027671,2]
[322222555,1712890257700,-500.0,0.00027671,2]
[322222556,1712890257712,-552.17,0.00027671,2]
[322222557,1712890257721,-500.0,0.00027671,2]
[322222558,1712890257731,-500.0,0.00027671,2]
[322222559,1712890257741,-1277.4,0.00027671,2]
[322222560,1712890257751,-500.0,0.00027671,2]
[322222561,1712890257760,-500.0,0.00027671,2]
[322222562,1712890257770,-154.20406454,0.00027674,2]
[322222563,1712890257780,-27799.7501542,0.00027704,2]
[322222564,1712890257790,-3075.1488889,0.00027704,2]
[322222565,1712890257799,-174.56885952,0.00027723,2]
[322222566,1712890257809,-645.3109415,0.00027763,2]
[322222567,1712890257819,-563.58,0.00027785,2]
[322222568,1712890257828,-17645.0,0.000278,5]
[322222569,1712890257838,-156.64160943,0.00027819,2]
[322222570,1712890257848,-645.3109415,0.00027857,2]
[322222571,1712890257857,-988.59364108,0.00027872,3]
[322222572,1712890257868,-1000.0,0.000279,2]
[322222573,1712890257878,-1500.0,0.000279,2]
[322222574,1712890257887,-1500.0,0.000279,2]
[322222575,1712890257897,-1500.0,0.000279,2]
[322222576,1712890257906,-1502.92,0.000279,2]
[322222577,1712890257915,-153.51916251,0.00027914,2]
[322222578,1712890257925,-166.69649995,0.00027917,2]
[322222579,1712890257935,-500.0,0.00027944,2]
[322222580,1712890257944,-269.46532831,0.00027945,2]
[322222581,1712890257955,-500.0,0.00027945,2]
[322222582,1712890257965,-500.0,0.00027945,2]
[322222583,1712890257974,-568.11316638,0.00027945,2]
[322222584,1712890257983,-506.27889944,0.00027945,2]
[322222585,1712890257993,-500.0,0.00027945,2]
[322222586,1712890258002,-500.0,0.00027945,2]
[322222587,1712890258011,-500.0,0.00027945,2]
[322222588,1712890258020,-500.0,0.00027945,2]
[322222589,1712890258030,-500.0,0.00027945,2]
[322222590,1712890258039,-500.0,0.00027945,2]
[322222591,1712890258049,-524.66362202,0.00027945,2]
[322222592,1712890258059,-500.0,0.00027945,2]
[322222593,1712890258068,-500.0,0.00027945,2]
[322222594,1712890258077,-500.0,0.00027945,2]
[322222595,1712890258086,-500.0,0.00027945,2]
[322222596,1712890258096,-500.0,0.00027945,2]
[322222597,1712890258105,-393.45131408,0.00027945,2]
[322222598,1712890258114,-500.0,0.00027945,2]
[322222599,1712890258123,-315.68696809,0.00027945,2]
[322222600,1712890258133,-508.6633454,0.00027945,2]
[322222601,1712890258143,-500.0,0.00027945,2]
[322222602,1712890258153,-500.0,0.00027945,2]
[322222603,1712890258162,-510.21033298,0.00027945,2]
[322222604,1712890258171,-534.37809402,0.00027945,2]